bitfinex/quotes_SOLUSD_20260305
["timestamp","ask_amount","ask_price","bid_price","bid_amount"]
[1772725734031,11.28477584,89.56,89.523,39.0960982]
[1772725734231,1.33001544,89.559,89.523,42.37623703]
[1772725734435,1.33001544,89.567,89.524,3.28013883]
[1772725734921,1.32688472,89.559,89.525,11.17006422]
[1772725735237,39.07732844,89.566,89.526,3.28013883]
[1772725735542,11.16495098,89.566,89.526,3.28013883]
[1772725735710,1.32378996,89.565,89.526,3.28013883]
[1772725737319,11.16449854,89.57,89.528,3.28013883]
[1772725737629,22.44927438,89.57,89.528,3.28013883]
[1772725738031,11.16449854,89.57,89.528,3.28013883]
[1772725738929,1.31471733,89.587,89.528,3.28013883]
[1772725739121,1.31471733,89.587,89.53,3.28013883]
[1772725739308,11.16245841,89.586,89.532,3.56446197]
[1772725739711,39.06860445,89.586,89.532,3.56446197]
[1772725739913,1.31176232,89.579,89.532,3.56446197]
[1772725740429,39.06860445,89.586,89.532,3.56446197]
[1772725741032,1.30884126,89.585,89.532,3.56446197]
[1772725741214,1.30884126,89.585,89.534,3.28013883]
[1772725741537,11.16199919,89.59,89.534,3.28013883]
[1772725741749,1.30595375,89.569,89.533,11.16906615]
[1772725742336,1.30595375,89.539,89.481,14.45569565]
[1772725742570,11.28477584,89.52,89.482,3.28013883]
[1772725742740,11.28477584,89.5,89.48,50.24]
[1772725743037,11.28477584,89.5,89.463,11.17780534]
[1772725743233,11.17330919,89.499,89.463,3.28013883]
[1772725743434,1.3030994,89.509,89.463,3.28013883]
[1772725743637,1.30027784,89.499,89.463,3.28013883]
[1772725744534,11.28477584,89.49,89.445,3.28013883]
[1772725744736,1.29748868,89.489,89.445,3.28013883]
[1772725745314,11.17468263,89.488,89.447,3.28013883]
[1772725746349,1.29473156,89.487,89.447,3.28013883]
[1772725746651,1.29473156,89.487,89.431,11.18180496]
[1772725746652,1.29473156,89.469,89.431,11.18180496]
[1772725747024,11.30935175,89.45,89.43,0.2]
[1772725747243,11.30935175,89.44,89.4,11.3856311]
[1772725747554,0.28432314,89.429,89.417,1e-08]
[1772725747725,0.28432314,89.429,89.4,0.2]
[1772725748543,11.30935175,89.41,89.4,0.2]
[1772725748752,11.30935175,89.42,89.382,11.18787823]
[1772725749126,11.30935175,89.42,89.355,6.94840587]
[1772725749127,11.30935175,89.39,89.355,10.3670692]
[1772725749340,11.30935175,89.39,89.357,3.41866333]
[1772725749532,11.30935175,89.39,89.35,3.41866333]
[1772725749744,11.30935175,89.37,89.318,3.41866333]
[1772725749930,3.69383402,89.399,89.318,3.41866333]
[1772725749931,11.30935175,89.38,89.318,3.41866333]
[1772725750327,11.30935175,89.36,89.318,3.41866333]
[1772725750523,0.28432314,89.359,89.318,3.41866333]
[1772725751149,11.30935175,89.34,89.296,3.41866333]
[1772725751347,0.28432314,89.337,89.296,3.41866333]
[1772725751533,11.30935175,89.33,89.296,3.41866333]
[1772725752246,11.30935175,89.33,89.297,11.19858449]
[1772725752439,11.30935175,89.33,89.296,3.41866333]
[1772725752645,11.30935175,89.33,89.297,11.19858449]
[1772725752948,5.84427784,89.369,89.298,3.41866333]
[1772725753251,11.18968758,89.368,89.302,3.41866333]
[1772725753450,11.18968758,89.368,89.304,3.41866333]
[1772725753635,11.30935175,89.35,89.304,3.41866333]
[1772725753848,0.14216157,89.359,89.289,3.41866333]
[1772725753849,0.14216157,89.339,89.289,3.41866333]
[1772725754163,3.69383402,89.365,89.289,3.41866333]
[1772725754363,11.30935175,89.35,89.293,3.41866333]
[1772725754665,0.28432314,89.339,89.293,3.41866333]
[1772725754868,11.30935175,89.34,89.293,3.41866333]
[1772725755041,0.28432314,89.349,89.293,3.41866333]
[1772725755537,0.28432314,89.359,89.295,3.41866333]
[1772725755737,11.30935175,89.35,89.295,3.41866333]
[1772725755944,0.28432314,89.359,89.295,3.41866333]
[1772725756347,39.16565954,89.364,89.298,0.28432314]
[1772725756554,11.19018844,89.364,89.303,3.41866333]
[1772725756859,44.73983839,89.406,89.303,3.41866333]
[1772725757046,11.18718396,89.388,89.317,3.41866333]
[1772725757250,11.18718396,89.388,89.323,3.41866333]
[1772725757439,3.69383402,89.391,89.331,3.70298647]
[1772725757740,11.18580744,89.399,89.331,3.70298647]
[1772725758256,11.18455636,89.409,89.331,3.70298647]
[1772725758654,27.95594586,89.427,89.331,3.70298647]
[1772725758854,27.95594586,89.427,89.33,229.48617483]
[1772725758855,11.18243016,89.426,89.343,0.28432314]
[1772725759056,11.18243016,89.426,89.361,0.28432314]
[1772725759255,11.18243016,89.426,89.362,3.41866333]
[1772725759561,11.18243016,89.426,89.364,3.41866333]
[1772725760151,11.30935175,89.42,89.364,3.41866333]
[1772725760458,0.28432314,89.419,89.364,3.41866333]
[1772725761843,11.18244179,89.426,89.366,3.41866333]
[1772725762048,11.17955483,89.449,89.369,3.5608249]
[1772725762264,39.1284419,89.449,89.381,3.41866333]
[1772725762546,0.14216157,89.439,89.383,3.41866333]
[1772725762750,39.1284419,89.449,89.383,3.41866333]
[1772725762946,11.17955483,89.449,89.385,3.41866333]
[1772725763151,11.17955483,89.449,89.393,3.41866333]
[1772725763754,27.94494532,89.462,89.394,39.15251582]
[1772725763956,3.69383402,89.465,89.395,3.41866333]
[1772725764167,11.30935175,89.46,89.395,3.41866333]
[1772725764365,39.12013232,89.468,89.397,3.41866333]
[1772725764556,0.14216157,89.467,89.403,3.41866333]
[1772725764753,0.28432314,89.459,89.403,3.41866333]
[1772725765090,39.12013232,89.468,89.403,3.41866333]
[1772725765265,11.17718066,89.468,89.403,3.41866333]
[1772725765648,0.28432314,89.459,89.403,3.41866333]
[1772725766368,0.28432314,89.449,89.405,3.41866333]
[1772725766668,0.28432314,89.449,89.4,3.41866333]
[1772725766872,11.30935175,89.45,89.4,3.41866333]
[1772725767059,0.28432314,89.457,89.4,3.41866333]
[1772725768049,11.73740548,89.496,89.399,39.15027281]
[1772725768050,11.17774066,89.464,89.402,3.41866333]
[1772725768248,0.28432314,89.472,89.404,3.41866333]
[1772725768448,0.28432314,89.469,89.404,3.41866333]
[1772725769690,0.28432314,89.409,89.34,3.41866333]
[1772725769968,11.30935175,89.36,89.32,3.41866333]
[1772725770158,11.30935175,89.35,89.32,3.41866333]
[1772725770362,11.30935175,89.36,89.322,3.41866333]
[1772725771272,11.30935175,89.37,89.322,3.41866333]
[1772725771768,11.30935175,89.36,89.322,3.41866333]
[1772725772155,11.30935175,89.37,89.322,3.41866333]
[1772725772360,11.18956237,89.369,89.324,3.41866333]
[1772725772556,11.18847418,89.378,89.324,3.41866333]
[1772725774767,11.18761056,89.385,89.326,3.70298647]
[1772725775466,11.30935175,89.38,89.326,3.41866333]
[1772725775664,11.18680851,89.391,89.328,3.41866333]
[1772725775870,11.18680851,89.391,89.325,39.18275957]
[1772725775871,11.18580744,89.399,89.335,0.14216157]
[1772725776062,11.18580744,89.399,89.34,3.41866333]
[1772725776656,11.18605769,89.397,89.342,3.41866333]
[1772725777171,11.18521785,89.404,89.35,3.41866333]
[1772725777575,11.30935175,89.4,89.35,3.41866333]
[1772725777750,6.91829697,89.411,89.355,0.14216157]
[1772725777951,6.91829697,89.411,89.341,128.72029637]
[1772725777952,6.91829697,89.411,89.36,3.41866333]
[1772725778456,11.18443127,89.41,89.36,3.41866333]
[1772725778860,11.18443127,89.41,89.362,3.41866333]
[1772725779058,11.18443127,89.41,89.361,39.1669744]
[1772725779059,11.17979323,89.448,89.366,0.14216157]
[1772725779254,1.33449538,89.447,89.375,0.14216157]
[1772725779561,1.33449538,89.447,89.382,3.41866333]
[1772725779762,11.17979323,89.448,89.39,3.41866333]
[1772725780065,11.30935175,89.44,89.39,3.41866333]
[1772725780257,1.33449538,89.447,89.39,3.41866333]
[1772725780456,11.17979323,89.448,89.39,3.41866333]
[1772725780862,11.17979323,89.448,89.391,39.15382979]
[1772725781078,11.17979323,89.448,89.392,3.41866333]
[1772725782482,11.30935175,89.44,89.392,3.41866333]
[1772725783083,0.28432314,89.444,89.394,3.41866333]
[1772725783256,11.30935175,89.44,89.394,3.41866333]
[1772725783462,11.30935175,89.43,89.394,3.41866333]
[1772725783671,1.61881852,89.439,89.394,3.41866333]
[1772725784474,1.61881852,89.444,89.394,3.41866333]
[1772725784660,0.28432314,89.444,89.394,3.41866333]
[1772725785267,11.18005478,89.445,89.396,3.41866333]
[1772725785582,11.30935175,89.44,89.396,3.41866333]
[1772725786467,1.61881852,89.444,89.396,3.41866333]
[1772725786664,1.61881852,89.444,89.352,1.11916912]
[1772725786665,11.30935175,89.43,89.385,3.41866333]
[1772725787068,11.30935175,89.44,89.385,3.41866333]
[1772725787267,11.17955483,89.449,89.387,3.41866333]
[1772725787465,11.17955483,89.449,89.389,3.41866333]
[1772725787968,11.30935175,89.44,89.389,3.41866333]
[1772725788563,1.61881852,89.448,89.389,3.41866333]
[1772725789079,11.30935175,89.45,89.389,3.41866333]
[1772725789377,11.30935175,89.45,89.371,1.11893119]
[1772725789378,11.18080479,89.439,89.391,3.41866333]
[1772725790164,39.13281677,89.439,89.377,3.41866333]
[1772725790361,39.13281677,89.439,89.189,164.2]
[1772725790362,11.30935175,89.4,89.365,3.41866333]
[1772725791180,11.30935175,89.39,89.336,3.41866333]
[1772725791379,11.30935175,89.4,89.341,3.41866333]
[1772725793184,1.33449538,89.41,89.345,3.41866333]
[1772725793185,11.18580744,89.399,89.345,3.41866333]
[1772725793485,11.18580744,89.399,89.347,3.41866333]
[1772725793682,11.30935175,89.39,89.347,3.41866333]
[1772725793881,11.30935175,89.39,89.309,1.11970798]
[1772725793882,11.30935175,89.38,89.337,11.19345233]
[1772725794083,11.30935175,89.38,89.338,3.41866333]
[1772725794666,11.30935175,89.37,89.338,3.41866333]
[1772725794967,11.30935175,89.37,89.338,14.61210844]
[1772725795171,11.30935175,89.4,89.3,0.14216157]
[1772725795172,11.30935175,89.39,89.341,3.41866333]
[1772725795375,0.28432314,89.399,89.341,3.41866333]
[1772725795686,11.30935175,89.39,89.341,3.41866333]
[1772725797186,39.15470583,89.389,89.342,11.19294396]
[1772725797394,39.15470583,89.389,89.343,3.41866333]
[1772725797769,11.18705881,89.389,89.343,3.41866333]
[1772725798298,22.49378302,89.41,89.345,3.41866333]
[1772725798594,1.33449538,89.409,89.349,3.41866333]
[1772725798790,1.61881852,89.409,89.349,3.41866333]
[1772725799001,11.30935175,89.38,89.349,3.41866333]
[1772725799307,0.28432314,89.392,89.351,3.41866333]
[1772725799308,11.18705881,89.389,89.351,3.41866333]
[1772725799592,12.52155419,89.389,89.351,3.41866333]
[1772725799788,11.1855572,89.401,89.351,3.41866333]
[1772725799981,12.64384713,89.4,89.351,3.41866333]
[1772725800780,1.33449538,89.4,89.351,3.41866333]
[1772725800982,11.18500925,89.406,89.351,3.41866333]
[1772725801182,22.49381954,89.41,89.352,0.28432314]
[1772725801383,11.30935175,89.41,89.357,3.41866333]
[1772725801589,11.30935175,89.41,89.359,3.41866333]
[1772725801800,11.30935175,89.4,89.359,3.41866333]
[1772725802013,1.33449538,89.418,89.359,3.41866333]
[1772725802184,11.30935175,89.41,89.359,3.41866333]
[1772725802501,1.33449538,89.409,89.359,3.41866333]
[1772725802703,11.30935175,89.4,89.359,3.41866333]
[1772725802877,11.30935175,89.39,89.348,3.41866333]
[1772725803081,1.33449538,89.389,89.349,3.41866333]
[1772725803391,11.18705881,89.389,89.351,3.41866333]
[1772725803592,40.48920121,89.389,89.351,3.41866333]
[1772725803907,11.18355569,89.417,89.351,3.41866333]
[1772725804097,11.30935175,89.43,89.356,0.14216157]
[1772725804301,29.28918977,89.431,89.369,3.41866333]
[1772725804491,11.30935175,89.43,89.369,3.41866333]
[1772725804889,1.33449538,89.439,89.369,3.41866333]
[1772725805387,11.1809298,89.438,89.374,3.41866333]
[1772725805589,11.17967981,89.448,89.386,3.41866333]
[1772725805797,44.70399471,89.478,89.381,0.14216157]
[1772725805798,11.30935175,89.47,89.4,3.41866333]
[1772725806109,11.30935175,89.45,89.4,3.41866333]
[1772725806504,11.30935175,89.46,89.4,3.41866333]
[1772725807107,11.30935175,89.44,89.4,3.41866333]
[1772725807291,11.30935175,89.45,89.4,3.41866333]
[1772725807603,11.17955483,89.449,89.402,3.41866333]
[1772725807823,39.1284419,89.449,89.402,3.41866333]
[1772725808023,11.17955483,89.449,89.402,3.41866333]
[1772725808312,27.94238403,89.47,89.404,3.41866333]
[1772725808625,0.28432314,89.468,89.41,3.41866333]
[1772725808792,11.30994946,89.46,89.41,3.41866333]
[1772725808991,11.30994946,89.45,89.41,3.41866333]
[1772725809702,39.1284419,89.449,89.41,3.41866333]
[1772725809897,11.30994946,89.44,89.407,11.18469839]
[1772725810212,40.46293728,89.449,89.398,3.41866333]
[1772725810388,40.46293728,89.449,89.4,3.41866333]
[1772725810788,0.28432314,89.448,89.4,3.41866333]
[1772725811091,11.30994946,89.43,89.356,3.41866333]
[1772725811393,11.30994946,89.43,89.366,3.41866333]
[1772725811595,1.61881852,89.442,89.358,3.69383402]
[1772725811596,0.28432314,89.439,89.37,3.41866333]
[1772725811799,11.18105482,89.437,89.372,3.41866333]
[1772725812004,11.18105482,89.437,89.38,3.41866333]
[1772725812206,1.33449538,89.436,89.38,3.41866333]
[1772725812522,39.13369187,89.437,89.38,3.41866333]
[1772725812686,0.28432314,89.446,89.38,3.41866333]
[1772725812885,44.69274561,89.5,89.371,139.86639959]
[1772725812886,27.94308403,89.468,89.387,0.28432314]
[1772725813087,12.51117635,89.472,89.404,3.41866333]
[1772725813388,11.30994946,89.47,89.41,3.41866333]
[1772725813782,3.97815716,89.482,89.381,3.69383402]
[1772725813783,0.28432314,89.459,89.412,3.41866333]
[1772725813984,39.12013232,89.468,89.412,3.41866333]
[1772725813985,0.28432314,89.449,89.412,3.41866333]
[1772725814210,1.33449538,89.448,89.412,3.41866333]
[1772725814911,1.33449538,89.448,89.359,89.525913]
[1772725814912,11.30994946,89.44,89.388,3.41866333]
[1772725815132,1.33449538,89.439,89.388,3.41866333]
[1772725815295,1.61881852,89.449,89.388,3.41866333]
[1772725815612,11.30994946,89.44,89.388,3.41866333]
[1772725815796,1.33449538,89.439,89.388,3.41866333]
[1772725815998,39.13325431,89.438,89.39,3.41866333]
[1772725816595,11.30994946,89.43,89.39,3.41866333]
[1772725816796,1.33449538,89.429,89.39,3.41866333]
[1772725818010,39.13763026,89.428,89.39,3.41866333]
[1772725818200,40.47212564,89.428,89.391,11.18680851]
[1772725818514,40.47212564,89.428,89.39,3.41866333]
[1772725819202,11.18218007,89.428,89.392,3.41866333]
[1772725819728,39.13763026,89.428,89.392,3.41866333]
[1772725820308,39.13763026,89.428,89.394,3.41866333]
[1772725820514,11.18172824,89.432,89.394,3.41866333]
[1772725820729,1.33449538,89.447,89.394,3.41866333]
[1772725821029,1.33449538,89.473,89.397,3.70298647]
[1772725821197,11.30994946,89.47,89.399,3.41866333]
[1772725821406,1.33449538,89.469,89.399,3.41866333]
[1772725821935,11.30994946,89.46,89.399,3.41866333]
[1772725822432,11.30994946,89.45,89.401,3.41866333]
[1772725822803,11.17830514,89.459,89.401,3.41866333]
[1772725823229,11.17830514,89.459,89.406,0.28432314]
[1772725823426,11.17830514,89.459,89.4,39.14988813]
[1772725823427,11.17830514,89.459,89.409,3.41866333]
[1772725823642,39.124068,89.459,89.409,3.41866333]
[1772725824428,39.124068,89.459,89.411,3.41866333]
[1772725824920,11.17705573,89.469,89.411,3.41866333]
[1772725825226,1.33449538,89.468,89.411,3.41866333]
[1772725825417,39.11969507,89.469,89.411,3.41866333]
[1772725826035,11.17705573,89.469,89.412,0.28432314]
[1772725826236,11.17580661,89.479,89.419,3.41866333]
[1772725827150,11.17468263,89.488,89.421,3.41866333]
[1772725827320,11.17418316,89.492,89.429,3.41866333]
[1772725827516,1.33449538,89.509,89.445,3.41866333]
[1772725827715,11.1729651,89.502,89.449,3.41866333]
[1772725827924,11.1729651,89.502,89.423,4.81211455]
[1772725827925,0.1,89.51,89.459,3.41866333]
[1772725828132,11.17206091,89.509,89.459,3.41866333]
[1772725828337,0.1,89.51,89.459,3.41866333]
[1772725828717,11.17206091,89.509,89.459,3.41866333]
[1772725829034,0.1,89.51,89.469,3.41866333]
[1772725829216,0.1,89.53,89.472,3.65298647]
[1772725830826,11.16707054,89.549,89.479,3.31866333]
[1772725831029,11.16707054,89.549,89.489,3.31866333]
[1772725831334,0.1,89.55,89.491,3.31866333]
[1772725831540,0.1,89.55,89.493,3.31866333]
[1772725831741,0.1,89.55,89.499,3.31866333]
[1772725833326,0.1,89.55,89.502,0.28432314]
[1772725833525,0.1,89.55,89.509,3.31866333]
[1772725835548,0.1,89.55,89.511,3.31866333]
[1772725836626,0.1,89.55,89.516,0.28432314]
[1772725836830,0.1,89.55,89.519,3.31866333]
[1772725837448,0.1445402,89.549,89.509,3.31866333]
[1772725837648,11.30994946,89.54,89.501,14.49172284]
[1772725837842,0.14428423,89.529,89.454,3.31866333]
[1772725838047,11.30994946,89.53,89.462,3.31866333]
[1772725838237,1.47877961,89.538,89.462,3.31866333]
[1772725838542,1.47877961,89.538,89.472,0.28432314]
[1772725838722,1.47877961,89.538,89.479,3.31866333]
[1772725838919,1.33449538,89.538,89.479,3.31866333]
[1772725839119,0.1440312,89.547,89.479,3.31866333]
[1772725839349,1.33449538,89.546,89.479,3.31866333]
[1772725839536,11.30994946,89.54,89.481,3.31866333]
[1772725839844,39.23027389,89.545,89.486,0.28432314]
[1772725840046,0.14378108,89.544,89.489,3.31866333]
[1772725840352,11.16707054,89.549,89.499,3.31866333]
[1772725842229,11.16707054,89.549,89.484,0.14216157]
[1772725842230,1.33449538,89.548,89.501,3.31866333]
[1772725842544,11.30994946,89.54,89.501,3.31866333]
[1772725842733,0.14304781,89.54,89.501,3.31866333]
[1772725843633,1.33449538,89.548,89.501,3.31866333]
[1772725843936,0.14280898,89.549,89.501,3.31866333]
[1772725844443,0.14280898,89.547,89.503,3.31866333]
[1772725846447,11.40994946,89.55,89.505,3.31866333]
[1772725846448,39.08649281,89.545,89.505,3.31866333]
[1772725846631,39.08649281,89.545,89.48,0.14216157]
[1772725846632,0.14210882,89.539,89.465,3.31866333]
[1772725846949,0.14210882,89.519,89.467,3.31866333]
[1772725847336,11.30994946,89.5,89.467,3.31866333]
[1772725847845,0.14210882,89.509,89.467,3.31866333]
[1772725848526,0.14165535,89.508,89.468,11.17718066]
[1772725848749,0.14165535,89.508,89.467,3.31866333]
[1772725849256,11.17206091,89.509,89.469,3.31866333]
[1772725850651,11.16944041,89.53,89.471,3.31866333]
[1772725850828,11.16944041,89.53,89.418,20.23312285]
[1772725850829,0.14099449,89.479,89.418,20.23312285]
[1772725851029,11.30994946,89.52,89.404,3.31866333]
[1772725851030,11.30994946,89.43,89.404,3.31866333]
[1772725851451,11.30994946,89.44,89.404,3.31866333]
[1772725851649,11.30994946,89.45,89.404,3.31866333]
[1772725851854,0.28432314,89.449,89.404,3.31866333]
[1772725852153,11.30994946,89.43,89.394,3.38916057]
[1772725852656,11.17955483,89.449,89.396,3.38916057]
[1772725853839,11.30994946,89.43,89.396,3.38916057]
[1772725854554,11.18205503,89.429,89.396,3.38916057]
[1772725854751,11.30994946,89.43,89.398,3.38916057]
[1772725856948,11.18205503,89.429,89.398,3.38916057]
[1772725857554,11.18205503,89.429,89.4,3.38916057]
[1772725857749,11.18134468,89.435,89.4,3.38916057]
[1772725857946,27.94581546,89.459,89.4,3.38916057]
[1772725858337,1.39730376,89.458,89.4,3.38916057]
[1772725858536,1.53946533,89.458,89.4,3.38916057]
[1772725858736,0.28432314,89.457,89.4,3.38916057]
[1772725858951,0.28432314,89.455,89.402,3.38916057]
[1772725859161,11.17693081,89.47,89.404,3.38916057]
[1772725859342,11.30994946,89.45,89.404,3.38916057]
[1772725860144,1.39730376,89.458,89.404,3.38916057]
[1772725860545,22.48688027,89.47,89.406,3.38916057]
[1772725860737,1.39713196,89.469,89.408,3.38916057]
[1772725860942,11.30994946,89.46,89.41,3.38916057]
[1772725861142,1.39716319,89.467,89.41,3.38916057]
[1772725861551,11.17718066,89.468,89.41,3.38916057]
[1772725861759,27.93919447,89.481,89.416,3.38916057]
[1772725861963,11.17468263,89.488,89.426,3.38916057]
[1772725862164,11.17318435,89.5,89.438,3.38916057]
[1772725862376,1.39666364,89.499,89.438,3.38916057]
[1772725863058,11.17343404,89.498,89.44,3.38916057]
[1772725863242,11.17343404,89.498,89.442,3.38916057]
[1772725863444,11.17343404,89.498,89.448,3.38916057]
[1772725863865,11.17193609,89.51,89.448,3.38916057]
[1772725864040,11.1713626,89.515,89.458,3.38916057]
[1772725865064,11.17006422,89.525,89.46,3.38916057]
[1772725865260,11.17006422,89.525,89.459,39.124068]
[1772725865261,11.16844244,89.538,89.469,0.28432314]
[1772725865478,11.16844244,89.538,89.478,3.38916057]
[1772725866559,0.28432314,89.545,89.48,3.38916057]
[1772725867161,39.08605632,89.546,89.482,3.38916057]
[1772725867470,39.08605632,89.546,89.488,3.38916057]
[1772725867770,11.16744466,89.546,89.488,3.38916057]
[1772725868069,11.30994946,89.54,89.488,3.38916057]
[1772725868458,11.16777937,89.544,89.49,3.38916057]
[1772725869179,0.1,89.55,89.492,3.38916057]
[1772725869345,0.1,89.55,89.501,0.28432314]
[1772725869544,0.1,89.55,89.492,3.69383402]
[1772725869545,0.1,89.55,89.508,3.38916057]
[1772725870355,0.1,89.55,89.51,3.38916057]
[1772725871980,0.1,89.55,89.512,3.38916057]
[1772725872697,11.28926973,89.57,89.511,39.10133949]
[1772725872698,11.16384488,89.575,89.514,3.38916057]
[1772725872859,11.16384488,89.575,89.518,3.38916057]
[1772725873271,44.64079818,89.605,89.511,39.10133949]
[1772725873272,12.78435901,89.6,89.524,3.38916057]
[1772725873457,12.78435901,89.6,89.514,3.69383402]
[1772725873458,11.16187228,89.591,89.528,3.38916057]
[1772725873858,11.16187228,89.591,89.53,3.38916057]
[1772725874285,1.39516714,89.595,89.532,3.38916057]
[1772725874461,11.8423266,89.596,89.532,3.38916057]
[1772725874462,0.68103487,89.596,89.536,3.67348371]
[1772725875301,11.16133712,89.595,89.536,3.67348371]
[1772725875464,11.28926973,89.59,89.536,3.38916057]
[1772725875789,1.39526057,89.589,89.536,3.38916057]
[1772725876089,11.16220922,89.588,89.538,3.38916057]
[1772725876290,40.46300843,89.588,89.538,3.38916057]
[1772725877462,11.28926973,89.58,89.538,3.38916057]
[1772725877676,1.67961486,89.587,89.538,3.38916057]
[1772725877879,1.39529172,89.587,89.538,3.38916057]
[1772725878180,11.16245841,89.586,89.54,3.38916057]
[1772725878382,0.68103487,89.596,89.54,3.38916057]
[1772725878383,11.16159952,89.593,89.54,3.38916057]
[1772725879093,0.68103487,89.596,89.543,3.38916057]
[1772725879290,0.68103487,89.596,89.547,3.38916057]
[1772725880162,0.68103487,89.596,89.542,3.69383402]
[1772725880163,0.68103487,89.596,89.55,0.28432314]
[1772725880364,0.68103487,89.596,89.544,3.38916057]
[1772725880365,0.14216157,89.594,89.544,3.38916057]
[1772725880591,0.1,89.6,89.547,3.38916057]
[1772725880774,0.1,89.62,89.555,3.38916057]
[1772725880961,0.1,89.63,89.548,0.28432314]
[1772725880962,0.1,89.63,89.571,3.38916057]
[1772725881280,11.38926973,89.66,89.596,3.38916057]
[1772725881281,1e-08,89.65,89.596,3.38916057]
[1772725881495,11.15461193,89.65,89.6,3.38916057]
[1772725881796,39.04083613,89.65,89.6,3.38916057]
[1772725881970,11.15461193,89.65,89.6,3.38916057]
[1772725882172,1e-08,89.65,89.602,3.38916057]
[1772725884069,1e-08,89.65,89.604,3.38916057]
[1772725884789,11.28926974,89.65,89.604,3.38916057]
[1772725884969,1.39431122,89.65,89.597,3.38916057]
[1772725885291,1e-08,89.65,89.597,3.38916057]
[1772725885870,0.14216157,89.649,89.584,3.38916057]
[1772725886070,11.28926973,89.62,89.576,11.16366166]
[1772725886298,11.15847262,89.618,89.576,11.16366166]
[1772725886473,12.55328169,89.618,89.576,11.16366166]
[1772725887092,11.28926973,89.61,89.563,3.38916057]
[1772725888104,11.28926973,89.6,89.557,11.166073]
[1772725888276,40.45804081,89.599,89.557,11.166073]
[1772725888773,40.45804081,89.599,89.556,0.76798481]
[1772725888979,40.45804081,89.599,89.556,11.93414273]
[1772725889776,12.55594369,89.599,89.557,3.38916057]
[1772725889974,11.16083884,89.599,89.557,3.38916057]
[1772725890176,0.14216157,89.619,89.559,3.38916057]
[1772725890383,0.28432314,89.617,89.559,3.38916057]
[1772725890585,1.3948402,89.616,89.559,3.38916057]
[1772725890892,11.1569932,89.63,89.565,3.38916057]
[1772725891075,11.1569932,89.63,89.572,0.28432314]
[1772725891277,11.1569932,89.63,89.577,3.38916057]
[1772725891885,1.39448231,89.639,89.577,3.38916057]
[1772725892090,11.15621443,89.637,89.577,3.38916057]
[1772725892292,11.1546141,89.649,89.587,3.38916057]
[1772725894082,1e-08,89.65,89.589,3.67348371]
[1772725894488,1e-08,89.65,89.594,3.38916057]
[1772725894802,0.1,89.66,89.614,3.38916057]
[1772725894973,0.1,89.68,89.652,3.38916057]
[1772725895992,0.1,89.68,89.654,3.33916057]
[1772725896980,0.1,89.68,89.633,3.33916057]
[1772725898117,0.1,89.68,89.635,3.33916057]
[1772725900713,0.1,89.68,89.637,3.33916057]
[1772725902008,0.09125385,89.679,89.637,3.33916057]
[1772725902309,1.39387586,89.678,89.597,4.82477569]
[1772725902490,0.1,89.68,89.6,8.80293285]
[1772725902699,0.1,89.68,89.61,4.82477569]
[1772725902894,0.1,89.68,89.615,0.14216157]
[1772725903100,0.1,89.68,89.616,1.11587216]
[1772725903501,0.1,89.68,89.625,3.69383402]
[1772725903705,0.1,89.69,89.626,1.4000708]
[1772725904103,0.1,89.69,89.627,3.20878597]
[1772725904291,0.69099505,89.69,89.627,3.20878597]
[1772725905108,0.59086785,89.688,89.63,3.20878597]
[1772725905303,11.1496393,89.689,89.638,3.20878597]
[1772725905907,0.1,89.69,89.651,0.28432314]
[1772725906090,0.1,89.69,89.658,3.20878597]
[1772725906295,11.24963123,89.69,89.658,3.20878597]
[1772725907312,0.1,89.69,89.659,11.15336999]
[1772725907493,0.1,89.69,89.659,39.03679496]
[1772725907822,0.1,89.7,89.661,3.20878597]
[1772725908006,1.39354953,89.699,89.661,3.20878597]
[1772725908214,0.1,89.7,89.661,3.20878597]
[1772725908415,1.39354953,89.699,89.661,3.20878597]
[1772725908798,0.1,89.7,89.661,3.20878597]
[1772725909010,2.08427545,89.7,89.661,3.20878597]
[1772725909203,0.59074145,89.699,89.661,3.20878597]
[1772725909431,0.59074145,89.689,89.608,3.26684198]
[1772725909729,11.14852059,89.698,89.635,0.28432314]
[1772725909894,11.14852059,89.698,89.638,3.26684198]
[1772725910292,0.59077629,89.697,89.638,3.26684198]
[1772725910499,0.59077629,89.689,89.638,3.26684198]
[1772725910727,11.14852059,89.698,89.638,3.26684198]
[1772725911035,11.1483963,89.699,89.648,3.26684198]
[1772725911611,11.1483963,89.699,89.65,3.26684198]
[1772725912034,0.69081074,89.7,89.65,3.26684198]
[1772725912338,11.83917754,89.7,89.65,3.26684198]
[1772725913233,0.59087845,89.699,89.652,3.26684198]
[1772725913423,0.59087845,89.698,89.652,3.26684198]
[1772725913626,0.59091172,89.697,89.651,11.15436526]
[1772725913931,11.28926973,89.69,89.642,14.42221678]
[1772725914138,0.59091172,89.688,89.643,3.26684198]
[1772725914436,0.59091172,89.696,89.643,3.26684198]
[1772725915308,0.59094461,89.693,89.645,3.26684198]
[1772725915504,0.59094461,89.689,89.645,3.26684198]
[1772725915704,0.28432314,89.692,89.645,3.26684198]